[Event "*** Titled Tuesday Blitz"]
[Site "Chess.com"]
[Date "2021.02.16"]
[Round "8"]
[White "jefferyx"]
[Black "rasmussvane"]
[Result "1/2-1/2"]
[WhiteElo "2993"]
[BlackElo "2932"]
[TimeControl "180+1"]
[EndTime "11:29:33 PST"]
[Termination "Game drawn by agreement"]

1. e4 {[%clk 0:03:00.9]} 1... c6 {[%clk 0:03:00.2]} 2. d4 {[%clk 0:02:59.8]}
2... d5 {[%clk 0:03:01.1]} 3. f3 {[%clk 0:02:58.9]} 3... e6 {[%clk 0:02:59]} 4.
Nc3 {[%clk 0:02:58.7]} 4... Bb4 {[%clk 0:02:59.2]} 5. a3 {[%clk 0:02:58.6]} 5...
Bxc3+ {[%clk 0:02:56.3]} 6. bxc3 {[%clk 0:02:59.3]} 6... c5 {[%clk 0:02:57.1]}
7. exd5 {[%clk 0:02:52.6]} 7... Qxd5 {[%clk 0:02:53.2]} 8. Be3 {[%clk
0:02:52.1]} 8... cxd4 {[%clk 0:02:33]} 9. cxd4 {[%clk 0:02:53]} 9... Ne7 {[%clk
0:02:33.4]} 10. Bd3 {[%clk 0:02:47.3]} 10... O-O {[%clk 0:02:17.2]} 11. c4
{[%clk 0:02:46.5]} 11... Qa5+ {[%clk 0:01:59.7]} 12. Qd2 {[%clk 0:02:46.4]}
12... Qxd2+ {[%clk 0:01:56.2]} 13. Kxd2 {[%clk 0:02:47.3]} 13... Nbc6 {[%clk
0:01:54.6]} 14. Ne2 {[%clk 0:02:47.2]} 14... b6 {[%clk 0:01:54.7]} 15. Rab1
{[%clk 0:02:17.8]} 15... Ba6 {[%clk 0:01:52.2]} 16. Rhc1 {[%clk 0:02:13.5]}
16... Rac8 {[%clk 0:01:43.4]} 17. Rc3 {[%clk 0:01:44.5]} 17... Rfd8 {[%clk
0:01:41.2]} 18. g4 {[%clk 0:01:44.2]} 18... Rd7 {[%clk 0:01:31.4]} 19. h4 {[%clk
0:01:43]} 19... Na5 {[%clk 0:01:18.7]} 20. Rbc1 {[%clk 0:01:30.8]} 20... Rdc7
{[%clk 0:00:43.1]} 21. d5 {[%clk 0:01:27]} 21... Nxc4+ {[%clk 0:00:27]} 22. Bxc4
{[%clk 0:01:18]} 22... Rxc4 {[%clk 0:00:27.9]} 23. dxe6 {[%clk 0:01:05.9]} 23...
fxe6 {[%clk 0:00:23.8]} 24. Rxc4 {[%clk 0:00:57.8]} 24... Rxc4 {[%clk
0:00:23.6]} 25. Rxc4 {[%clk 0:00:56.9]} 25... Bxc4 {[%clk 0:00:24.5]} 26. Nc3
{[%clk 0:00:57.3]} 26... Bd5 {[%clk 0:00:18.1]} 27. Ke2 {[%clk 0:00:56.1]} 27...
Bc6 {[%clk 0:00:18.4]} 28. Bf4 {[%clk 0:00:54.6]} 28... Kf7 {[%clk 0:00:14.7]}
29. Bb8 {[%clk 0:00:53.7]} 29... a6 {[%clk 0:00:15]} 30. Ke3 {[%clk 0:00:43.5]}
30... Nd5+ {[%clk 0:00:08.1]} 31. Nxd5 {[%clk 0:00:43]} 31... Bxd5 {[%clk
0:00:09]} 32. Bc7 {[%clk 0:00:37.9]} 32... b5 {[%clk 0:00:09.3]} 33. h5 {[%clk
0:00:38.4]} 33... g6 {[%clk 0:00:06.2]} 34. hxg6+ {[%clk 0:00:37.4]} 34... Kxg6
{[%clk 0:00:06.6]} 35. Kf4 {[%clk 0:00:36.5]} 35... h5 {[%clk 0:00:06.7]} 36.
gxh5+ {[%clk 0:00:37.4]} 36... Kxh5 {[%clk 0:00:07.6]} 37. Ba5 {[%clk
0:00:37.7]} 37... Kg6 {[%clk 0:00:07.9]} 38. Ke3 {[%clk 0:00:37]} 38... Kf5
{[%clk 0:00:08.1]} 39. f4 {[%clk 0:00:36.7]} 39... e5 {[%clk 0:00:07.6]} 40.
fxe5 {[%clk 0:00:36.8]} 40... Kxe5 {[%clk 0:00:08.5]} 1/2-1/2

[Event "*** Titled Tuesday Blitz"]
[Site "Chess.com"]
[Date "2021.02.16"]
[Round "8"]
[White "maxip32"]
[Black "krzyzan94"]
[Result "1-0"]
[WhiteElo "2528"]
[BlackElo "2735"]
[TimeControl "180+1"]
[EndTime "11:29:33 PST"]
[Termination "maxip32 won on time"]

1. e4 {[%clk 0:03:00.9]} 1... c5 {[%clk 0:02:58.8]} 2. Nf3 {[%clk 0:03:00.3]}
2... d6 {[%clk 0:02:57.4]} 3. d4 {[%clk 0:03:00.3]} 3... cxd4 {[%clk 0:02:58.3]}
4. Nxd4 {[%clk 0:03:00.7]} 4... Nf6 {[%clk 0:02:58.4]} 5. Nc3 {[%clk 0:03:01.3]}
5... a6 {[%clk 0:02:56.8]} 6. Be2 {[%clk 0:03:00.6]} 6... e5 {[%clk 0:02:56.5]}
7. Nb3 {[%clk 0:03:00.5]} 7... Be7 {[%clk 0:02:56.3]} 8. Be3 {[%clk 0:03:00.6]}
8... Be6 {[%clk 0:02:54.2]} 9. Qd3 {[%clk 0:02:57.2]} 9... O-O {[%clk
0:02:49.9]} 10. Nd5 {[%clk 0:02:56.9]} 10... Bxd5 {[%clk 0:02:43.5]} 11. exd5
{[%clk 0:02:57.8]} 11... Nbd7 {[%clk 0:02:41.9]} 12. g4 {[%clk 0:02:57.8]} 12...
b5 {[%clk 0:02:31.4]} 13. g5 {[%clk 0:02:54.6]} 13... Ne8 {[%clk 0:02:31.3]} 14.
h4 {[%clk 0:02:51.3]} 14... Rc8 {[%clk 0:02:21.6]} 15. O-O-O {[%clk 0:02:50]}
15... Nc5 {[%clk 0:02:04.4]} 16. Qf5 {[%clk 0:02:39.4]} 16... Nxb3+ {[%clk
0:01:48.2]} 17. axb3 {[%clk 0:02:40.3]} 17... g6 {[%clk 0:01:31.8]} 18. Qg4
{[%clk 0:02:29.7]} 18... Rc7 {[%clk 0:01:04.9]} 19. h5 {[%clk 0:02:29.1]} 19...
Qc8 {[%clk 0:01:03.4]} 20. Qxc8 {[%clk 0:02:10]} 20... Rxc8 {[%clk 0:01:03.1]}
21. hxg6 {[%clk 0:02:07.7]} 21... hxg6 {[%clk 0:00:37.1]} 22. Rh6 {[%clk
0:01:54.8]} 22... f5 {[%clk 0:00:36.5]} 23. gxf6 {[%clk 0:01:27.4]} 23... Nxf6
{[%clk 0:00:36.7]} 24. Rxg6+ {[%clk 0:01:24.3]} 24... Kf7 {[%clk 0:00:36.9]} 25.
Rgg1 {[%clk 0:01:24.2]} 25... Rg8 {[%clk 0:00:34.2]} 26. Rxg8 {[%clk 0:01:10.8]}
26... Rxg8 {[%clk 0:00:35.1]} 27. c4 {[%clk 0:01:10.7]} 27... Ng4 {[%clk
0:00:29.5]} 28. Bxg4 {[%clk 0:00:50.4]} 28... Rxg4 {[%clk 0:00:30.4]} 29. c5
{[%clk 0:00:50.9]} 29... dxc5 {[%clk 0:00:25.6]} 30. d6 {[%clk 0:00:50.6]} 30...
Bd8 {[%clk 0:00:25.7]} 31. Bxc5 {[%clk 0:00:50.5]} 31... Rg6 {[%clk 0:00:20.4]}
32. b4 {[%clk 0:00:45]} 32... Ke6 {[%clk 0:00:10.2]} 33. Kd2 {[%clk 0:00:44.8]}
33... Kd7 {[%clk 0:00:06.3]} 34. Ra1 {[%clk 0:00:43.4]} 34... Bg5+ {[%clk
0:00:03.5]} 35. Ke2 {[%clk 0:00:43.4]} 35... e4 {[%clk 0:00:02.6]} 36. Rxa6
{[%clk 0:00:42.7]} 36... Bh4 {[%clk 0:00:02.6]} 37. Ra7+ {[%clk 0:00:41]} 37...
Ke6 {[%clk 0:00:02]} 38. Ra8 {[%clk 0:00:35.4]} 38... Kd7 {[%clk 0:00:01.5]} 39.
Rf8 {[%clk 0:00:34.7]} 39... Re6 {[%clk 0:00:01.1]} 40. Rf4 {[%clk 0:00:33.3]}
40... Kc6 {[%clk 0:00:01.4]} 41. Rxh4 {[%clk 0:00:32.9]} 1-0

[Event "*** Titled Tuesday Blitz"]
[Site "Chess.com"]
[Date "2021.02.16"]
[Round "8"]
[White "MerryPoppies"]
[Black "Kostukov_Alex"]
[Result "1/2-1/2"]
[WhiteElo "2172"]
[BlackElo "2307"]
[TimeControl "180+1"]
[EndTime "11:29:33 PST"]
[Termination "Game drawn by repetition"]

1. d4 {[%clk 0:03:00.9]} 1... g6 {[%clk 0:02:59]} 2. c4 {[%clk 0:03:00.4]} 2...
Bg7 {[%clk 0:02:59.6]} 3. Nc3 {[%clk 0:02:59.2]} 3... d6 {[%clk 0:03:00.2]} 4.
Nf3 {[%clk 0:02:55.6]} 4... e5 {[%clk 0:03:00.8]} 5. dxe5 {[%clk 0:02:55]} 5...
dxe5 {[%clk 0:03:01.7]} 6. Qxd8+ {[%clk 0:02:54.5]} 6... Kxd8 {[%clk 0:03:02.6]}
7. Bg5+ {[%clk 0:02:49.4]} 7... f6 {[%clk 0:03:02.3]} 8. O-O-O+ {[%clk
0:02:49.8]} 8... Nd7 {[%clk 0:03:02.8]} 9. Be3 {[%clk 0:02:48.7]} 9... Bh6
{[%clk 0:03:02]} 10. Bxh6 {[%clk 0:02:48.5]} 10... Nxh6 {[%clk 0:03:02.1]} 11.
e4 {[%clk 0:02:46.6]} 11... c6 {[%clk 0:03:01.2]} 12. h3 {[%clk 0:02:44.8]}
12... Ke7 {[%clk 0:03:01.7]} 13. b4 {[%clk 0:02:38.5]} 13... a5 {[%clk
0:03:01.1]} 14. b5 {[%clk 0:02:38]} 14... Nc5 {[%clk 0:02:58.7]} 15. Be2 {[%clk
0:02:31.7]} 15... Be6 {[%clk 0:02:54.9]} 16. g4 {[%clk 0:02:21.8]} 16... Nf7
{[%clk 0:02:54]} 17. Nd2 {[%clk 0:02:20.8]} 17... a4 {[%clk 0:02:48.4]} 18. Kc2
{[%clk 0:02:18.4]} 18... Rhd8 {[%clk 0:02:43.9]} 19. h4 {[%clk 0:02:13.8]} 19...
Rd4 {[%clk 0:02:38.3]} 20. Rhg1 {[%clk 0:01:22.5]} 20... Nd6 {[%clk 0:02:29]}
21. g5 {[%clk 0:01:00.1]} 21... f5 {[%clk 0:02:03.8]} 22. Nf3 {[%clk 0:00:38.6]}
22... Rxd1 {[%clk 0:01:55.9]} 23. Nxd1 {[%clk 0:00:38.4]} 23... Bxc4 {[%clk
0:01:40.7]} 24. Bxc4 {[%clk 0:00:30.3]} 24... Nxc4 {[%clk 0:01:40.7]} 25. bxc6
{[%clk 0:00:30.6]} 25... bxc6 {[%clk 0:01:23.2]} 26. exf5 {[%clk 0:00:28.1]}
26... gxf5 {[%clk 0:01:21.4]} 27. Kc3 {[%clk 0:00:26.2]} 27... Nd6 {[%clk
0:01:02.7]} 28. Nxe5 {[%clk 0:00:25.9]} 28... Nce4+ {[%clk 0:01:01.8]} 29. Kd4
{[%clk 0:00:25.2]} 29... Rc8 {[%clk 0:00:51.5]} 30. f3 {[%clk 0:00:22.4]} 30...
c5+ {[%clk 0:00:37.9]} 31. Ke3 {[%clk 0:00:22.5]} 31... f4+ {[%clk 0:00:31.3]}
32. Kxf4 {[%clk 0:00:21.7]} 32... Nd2 {[%clk 0:00:30.2]} 33. Ke3 {[%clk
0:00:20.9]} 33... N2c4+ {[%clk 0:00:29.7]} 34. Nxc4 {[%clk 0:00:21.1]} 34...
Nxc4+ {[%clk 0:00:30.6]} 35. Kd3 {[%clk 0:00:21.6]} 35... Ne5+ {[%clk
0:00:30.1]} 36. Ke4 {[%clk 0:00:22]} 36... Ke6 {[%clk 0:00:29.5]} 37. Ne3 {[%clk
0:00:22.2]} 37... Rd8 {[%clk 0:00:27.7]} 38. Nf5 {[%clk 0:00:18.6]} 38... Rd2
{[%clk 0:00:24.7]} 39. Ng7+ {[%clk 0:00:18.6]} 39... Kd6 {[%clk 0:00:24.5]} 40.
Nf5+ {[%clk 0:00:18.8]} 40... Ke6 {[%clk 0:00:24.5]} 41. Ng7+ {[%clk 0:00:18.9]}
41... Kd6 {[%clk 0:00:24.6]} 42. Ne8+ {[%clk 0:00:18.7]} 42... Ke6 {[%clk
0:00:24.1]} 43. Nc7+ {[%clk 0:00:18.9]} 43... Kd6 {[%clk 0:00:24.5]} 44. Nb5+
{[%clk 0:00:19.1]} 44... Ke6 {[%clk 0:00:24.9]} 45. Nc7+ {[%clk 0:00:19.5]}
45... Kd6 {[%clk 0:00:25.2]} 46. Nb5+ {[%clk 0:00:19.8]} 46... Ke6 {[%clk
0:00:25.2]} 47. Nc7+ {[%clk 0:00:20.1]} 1/2-1/2

[Event "*** Titled Tuesday Blitz"]
[Site "Chess.com"]
[Date "2021.02.16"]
[Round "8"]
[White "kuban1991"]
[Black "Chopper1905"]
[Result "1-0"]
[WhiteElo "2914"]
[BlackElo "2945"]
[TimeControl "180+1"]
[EndTime "11:29:34 PST"]
[Termination "kuban1991 won on time"]

1. Nf3 {[%clk 0:03:00.9]} 1... d5 {[%clk 0:02:58.6]} 2. g3 {[%clk 0:03:01]} 2...
g6 {[%clk 0:02:58.8]} 3. Bg2 {[%clk 0:03:01.5]} 3... Bg7 {[%clk 0:02:59.3]} 4.
d4 {[%clk 0:03:02.4]} 4... Nf6 {[%clk 0:02:59.4]} 5. O-O {[%clk 0:03:02.2]} 5...
O-O {[%clk 0:02:58.5]} 6. Nbd2 {[%clk 0:03:02.7]} 6... c6 {[%clk 0:02:55.2]} 7.
c3 {[%clk 0:03:02.5]} 7... a5 {[%clk 0:02:51]} 8. Re1 {[%clk 0:03:02.7]} 8... a4
{[%clk 0:02:43.4]} 9. e4 {[%clk 0:03:02.1]} 9... dxe4 {[%clk 0:02:42.6]} 10.
Nxe4 {[%clk 0:03:03]} 10... Nxe4 {[%clk 0:02:43.1]} 11. Rxe4 {[%clk 0:03:03.2]}
11... Bf5 {[%clk 0:02:41.2]} 12. Re1 {[%clk 0:03:03.2]} 12... Nd7 {[%clk
0:02:39.4]} 13. Bg5 {[%clk 0:03:01.9]} 13... Re8 {[%clk 0:02:36.8]} 14. Nh4
{[%clk 0:02:56.5]} 14... Be6 {[%clk 0:02:36.5]} 15. Rxe6 {[%clk 0:02:51.1]}
15... fxe6 {[%clk 0:02:37.4]} 16. Qg4 {[%clk 0:02:50.5]} 16... Nf8 {[%clk
0:02:30]} 17. Re1 {[%clk 0:02:50]} 17... Ra5 {[%clk 0:02:20.2]} 18. Bc1 {[%clk
0:02:39.7]} 18... e5 {[%clk 0:02:11.4]} 19. dxe5 {[%clk 0:02:21.4]} 19... Rxe5
{[%clk 0:02:06.6]} 20. Rd1 {[%clk 0:02:16.1]} 20... Qa5 {[%clk 0:02:02.6]} 21.
Nf3 {[%clk 0:02:11.3]} 21... Rd5 {[%clk 0:01:57.5]} 22. Re1 {[%clk 0:02:11.6]}
22... a3 {[%clk 0:01:48.3]} 23. b4 {[%clk 0:02:09.2]} 23... Qd8 {[%clk
0:01:43.6]} 24. Nd4 {[%clk 0:01:59.4]} 24... Rxd4 {[%clk 0:01:38]} 25. cxd4
{[%clk 0:01:58.5]} 25... Qxd4 {[%clk 0:01:38.9]} 26. Qxd4 {[%clk 0:01:29.8]}
26... Bxd4 {[%clk 0:01:39.8]} 27. b5 {[%clk 0:01:30.1]} 27... cxb5 {[%clk
0:01:34.8]} 28. Bxa3 {[%clk 0:01:29.6]} 28... Ra8 {[%clk 0:01:31.8]} 29. Bxe7
{[%clk 0:01:23.8]} 29... Kg7 {[%clk 0:01:30.4]} 30. Re2 {[%clk 0:01:19.8]} 30...
Ra7 {[%clk 0:01:00.6]} 31. Bh3 {[%clk 0:01:16.4]} 31... b6 {[%clk 0:00:57.1]}
32. Kg2 {[%clk 0:01:10.1]} 32... h6 {[%clk 0:00:49.5]} 33. Bd6 {[%clk
0:01:09.2]} 33... Bc5 {[%clk 0:00:42.9]} 34. Be5+ {[%clk 0:01:02]} 34... Kf7
{[%clk 0:00:42.8]} 35. Bg4 {[%clk 0:00:48.2]} 35... b4 {[%clk 0:00:38.9]} 36.
Bf3 {[%clk 0:00:47.4]} 36... Rd7 {[%clk 0:00:38.4]} 37. Bc6 {[%clk 0:00:44.8]}
37... Rd8 {[%clk 0:00:33.9]} 38. Bb5 {[%clk 0:00:44.4]} 38... Nd7 {[%clk
0:00:22.8]} 39. Rd2 {[%clk 0:00:44.1]} 39... Nxe5 {[%clk 0:00:15.9]} 40. Rxd8
{[%clk 0:00:43.9]} 40... Ng4 {[%clk 0:00:16.6]} 41. Rd2 {[%clk 0:00:42.7]} 41...
h5 {[%clk 0:00:16.7]} 42. h3 {[%clk 0:00:43]} 42... Ne5 {[%clk 0:00:16.4]} 43.
f4 {[%clk 0:00:43.5]} 1-0

[Event "*** Titled Tuesday Blitz"]
[Site "Chess.com"]
[Date "2021.02.16"]
[Round "8"]
[White "jd001"]
[Black "ObligatePawnivore"]
[Result "1-0"]
[WhiteElo "2272"]
[BlackElo "1799"]
[TimeControl "180+1"]
[EndTime "11:29:34 PST"]
[Termination "jd001 won by resignation"]

1. d4 {[%clk 0:03:00.9]} 1... e6 {[%clk 0:02:58.7]} 2. c4 {[%clk 0:02:59.9]}
2... Nf6 {[%clk 0:02:58.7]} 3. Nc3 {[%clk 0:02:59.9]} 3... Bb4 {[%clk
0:02:58.8]} 4. Qb3 {[%clk 0:02:59.6]} 4... c5 {[%clk 0:02:55.5]} 5. a3 {[%clk
0:02:58.8]} 5... Bxc3+ {[%clk 0:02:52.1]} 6. bxc3 {[%clk 0:02:58.5]} 6... Nc6
{[%clk 0:02:37.4]} 7. Nf3 {[%clk 0:02:51.9]} 7... Qa5 {[%clk 0:02:26.9]} 8. Bd2
{[%clk 0:02:41.9]} 8... Ne4 {[%clk 0:02:22.9]} 9. e3 {[%clk 0:02:38.1]} 9... d6
{[%clk 0:02:11.6]} 10. Bd3 {[%clk 0:02:37.4]} 10... Nxd2 {[%clk 0:02:10.8]} 11.
Nxd2 {[%clk 0:02:36]} 11... b6 {[%clk 0:01:58.2]} 12. Rd1 {[%clk 0:02:30.9]}
12... O-O {[%clk 0:01:43]} 13. O-O {[%clk 0:02:30.6]} 13... e5 {[%clk
0:01:40.7]} 14. d5 {[%clk 0:02:23.3]} 14... Ne7 {[%clk 0:01:39]} 15. f4 {[%clk
0:02:22.9]} 15... exf4 {[%clk 0:01:27]} 16. Rxf4 {[%clk 0:02:21.2]} 16... Bd7
{[%clk 0:01:16.9]} 17. Rdf1 {[%clk 0:02:15]} 17... Ng6 {[%clk 0:01:15.8]} 18.
Bxg6 {[%clk 0:02:07.9]} 18... hxg6 {[%clk 0:01:13.6]} 19. e4 {[%clk 0:02:06.4]}
19... Rae8 {[%clk 0:01:12.4]} 20. h4 {[%clk 0:01:55.8]} 20... Qa4 {[%clk
0:01:07.2]} 21. Qxa4 {[%clk 0:01:45]} 21... Bxa4 {[%clk 0:01:08.1]} 22. Kf2
{[%clk 0:01:42.9]} 22... f5 {[%clk 0:00:57.7]} 23. Ke3 {[%clk 0:01:40.5]} 23...
Re5 {[%clk 0:00:52.2]} 24. Kd3 {[%clk 0:01:34.6]} 24... Rfe8 {[%clk 0:00:51.4]}
25. Re1 {[%clk 0:01:28.4]} 25... a6 {[%clk 0:00:36.6]} 26. Re3 {[%clk
0:01:25.5]} 26... b5 {[%clk 0:00:34.9]} 27. cxb5 {[%clk 0:01:23.1]} 27... axb5
{[%clk 0:00:35.5]} 28. Rff3 {[%clk 0:01:15.3]} 28... b4 {[%clk 0:00:20.2]} 29.
axb4 {[%clk 0:01:14.2]} 29... cxb4 {[%clk 0:00:20]} 30. cxb4 {[%clk 0:01:14.2]}
30... Bb5+ {[%clk 0:00:19.5]} 31. Kd4 {[%clk 0:01:13.4]} 31... Rc8 {[%clk
0:00:19.2]} 32. exf5 {[%clk 0:01:12.5]} 32... Rxe3 {[%clk 0:00:17.9]} 33. Rxe3
{[%clk 0:01:12]} 33... Rc1 {[%clk 0:00:17.8]} 34. fxg6 {[%clk 0:01:10.3]} 34...
Rd1 {[%clk 0:00:17.6]} 35. Kc3 {[%clk 0:01:09.9]} 35... Rc1+ {[%clk 0:00:17.7]}
36. Kb2 {[%clk 0:01:08.8]} 36... Rd1 {[%clk 0:00:15.8]} 37. Ne4 {[%clk
0:00:50.1]} 37... Rxd5 {[%clk 0:00:14.4]} 38. Ng5 {[%clk 0:00:48.4]} 38... Rd3
{[%clk 0:00:12.5]} 39. Re7 {[%clk 0:00:38.2]} 39... Rg3 {[%clk 0:00:07.8]} 40.
Rb7 {[%clk 0:00:34.8]} 40... Rxg2+ {[%clk 0:00:07.7]} 41. Kc3 {[%clk 0:00:34.7]}
41... Bc6 {[%clk 0:00:07.4]} 42. Rb8+ {[%clk 0:00:31.9]} 1-0

[Event "*** Titled Tuesday Blitz"]
[Site "Chess.com"]
[Date "2021.02.16"]
[Round "8"]
[White "igorcadilhac"]
[Black "L1m96"]
[Result "0-1"]
[WhiteElo "2357"]
[BlackElo "2541"]
[TimeControl "180+1"]
[EndTime "11:29:35 PST"]
[Termination "L1m96 won on time"]

1. e4 {[%clk 0:03:00.9]} 1... e5 {[%clk 0:02:59.8]} 2. Nf3 {[%clk 0:03:01]} 2...
Nc6 {[%clk 0:02:59.9]} 3. Bb5 {[%clk 0:03:01.7]} 3... a6 {[%clk 0:02:59.8]} 4.
Ba4 {[%clk 0:03:02.2]} 4... Nf6 {[%clk 0:02:59.8]} 5. d3 {[%clk 0:03:02.7]} 5...
b5 {[%clk 0:02:58.4]} 6. Bb3 {[%clk 0:03:02.6]} 6... Be7 {[%clk 0:02:58.8]} 7.
O-O {[%clk 0:03:02.6]} 7... O-O {[%clk 0:02:58.1]} 8. c3 {[%clk 0:03:03.1]} 8...
d6 {[%clk 0:02:58.5]} 9. a4 {[%clk 0:03:03.6]} 9... Bb7 {[%clk 0:02:58.4]} 10.
Na3 {[%clk 0:03:04]} 10... Nb8 {[%clk 0:02:50.2]} 11. Bg5 {[%clk 0:03:02.8]}
11... c6 {[%clk 0:02:48.2]} 12. Re1 {[%clk 0:03:03.2]} 12... Nbd7 {[%clk
0:02:47.7]} 13. d4 {[%clk 0:03:02.5]} 13... Re8 {[%clk 0:02:45.8]} 14. Nc2
{[%clk 0:02:59.3]} 14... c5 {[%clk 0:02:36.6]} 15. Na3 {[%clk 0:01:50]} 15...
exd4 {[%clk 0:01:49.2]} 16. cxd4 {[%clk 0:01:48.3]} 16... b4 {[%clk 0:01:17.5]}
17. Nc4 {[%clk 0:01:39.8]} 17... Nxe4 {[%clk 0:01:17.1]} 18. Bxe7 {[%clk
0:01:22.9]} 18... Rxe7 {[%clk 0:01:18]} 19. Ne3 {[%clk 0:00:51]} 19... Ndf6
{[%clk 0:00:55.8]} 20. Nf5 {[%clk 0:00:49.6]} 20... Rd7 {[%clk 0:00:56.1]} 21.
a5 {[%clk 0:00:33.8]} 21... Rc8 {[%clk 0:00:55.2]} 22. d5 {[%clk 0:00:32.6]}
22... c4 {[%clk 0:00:35.4]} 23. Ba4 {[%clk 0:00:32.6]} 23... Rdc7 {[%clk
0:00:35.8]} 24. Qd4 {[%clk 0:00:23.4]} 24... Bxd5 {[%clk 0:00:31.9]} 25. Rad1
{[%clk 0:00:07.2]} 25... Rc5 {[%clk 0:00:31.4]} 26. Ne3 {[%clk 0:00:03.5]} 26...
Ba8 {[%clk 0:00:23.8]} 27. Nd2 {[%clk 0:00:03.8]} 27... Nxd2 {[%clk 0:00:20.2]}
28. Qxd2 {[%clk 0:00:04.1]} 28... d5 {[%clk 0:00:18.5]} 29. Nf5 {[%clk
0:00:03.4]} 29... Ne4 {[%clk 0:00:15.6]} 30. Rxe4 {[%clk 0:00:02.4]} 30... c3
{[%clk 0:00:12.2]} 31. Ne7+ {[%clk 0:00:02.6]} 31... Qxe7 {[%clk 0:00:12.1]} 32.
Rxe7 {[%clk 0:00:02.5]} 32... cxd2 {[%clk 0:00:12.7]} 0-1

[Event "*** Titled Tuesday Blitz"]
[Site "Chess.com"]
[Date "2021.02.16"]
[Round "8"]
[White "ehrenfeld"]
[Black "novocane"]
[Result "1-0"]
[WhiteElo "2470"]
[BlackElo "2245"]
[TimeControl "180+1"]
[EndTime "11:29:39 PST"]
[Termination "ehrenfeld won by resignation"]

1. e4 {[%clk 0:03:00.9]} 1... c5 {[%clk 0:02:59.4]} 2. d3 {[%clk 0:03:00.8]}
2... g6 {[%clk 0:02:57.2]} 3. f4 {[%clk 0:03:00.9]} 3... Bg7 {[%clk 0:02:57.4]}
4. Nf3 {[%clk 0:03:01.5]} 4... Nc6 {[%clk 0:02:57]} 5. Be2 {[%clk 0:03:01.9]}
5... d5 {[%clk 0:02:50.3]} 6. O-O {[%clk 0:03:01.7]} 6... dxe4 {[%clk
0:02:45.1]} 7. dxe4 {[%clk 0:03:01.2]} 7... Qxd1 {[%clk 0:02:41.6]} 8. Rxd1
{[%clk 0:03:00.7]} 8... b6 {[%clk 0:02:32]} 9. c3 {[%clk 0:02:55.4]} 9... Bb7
{[%clk 0:02:31.4]} 10. Na3 {[%clk 0:02:45.6]} 10... Nf6 {[%clk 0:02:28.5]} 11.
e5 {[%clk 0:02:44.7]} 11... Nd7 {[%clk 0:02:28]} 12. Be3 {[%clk 0:02:37.6]}
12... a6 {[%clk 0:02:21.2]} 13. Nc4 {[%clk 0:02:32.5]} 13... b5 {[%clk
0:02:16.2]} 14. Rxd7 {[%clk 0:02:28.6]} 14... Kxd7 {[%clk 0:02:09]} 15. Nb6+
{[%clk 0:02:28.2]} 15... Kc7 {[%clk 0:01:40]} 16. Nxa8+ {[%clk 0:02:28.1]} 16...
Rxa8 {[%clk 0:01:37.9]} 17. Bxc5 {[%clk 0:02:28.2]} 17... h6 {[%clk 0:01:22.9]}
18. Kf2 {[%clk 0:02:27.4]} 18... Rd8 {[%clk 0:01:21.6]} 19. Rd1 {[%clk
0:02:24.9]} 19... Rxd1 {[%clk 0:01:20.8]} 20. Bxd1 {[%clk 0:02:24.9]} 20... Kd7
{[%clk 0:01:00.5]} 21. Nd2 {[%clk 0:02:23.7]} 21... Nd8 {[%clk 0:00:58.8]} 22.
Bf3 {[%clk 0:02:21.2]} 22... Ne6 {[%clk 0:00:49.9]} 23. Be3 {[%clk 0:02:19.5]}
23... Bxf3 {[%clk 0:00:47.6]} 24. Kxf3 {[%clk 0:02:17.9]} 24... Kc6 {[%clk
0:00:45]} 25. Ke4 {[%clk 0:02:17.1]} 25... Nc7 {[%clk 0:00:39.8]} 26. Nb3 {[%clk
0:02:13.9]} 26... e6 {[%clk 0:00:34.8]} 27. Na5+ {[%clk 0:01:55.9]} 27... Kd7
{[%clk 0:00:33.9]} 28. b3 {[%clk 0:01:46.6]} 28... Bf8 {[%clk 0:00:32.8]} 29. c4
{[%clk 0:01:20]} 29... Bb4 {[%clk 0:00:30.6]} 30. Nb7 {[%clk 0:01:20]} 30...
bxc4 {[%clk 0:00:25]} 31. bxc4 {[%clk 0:01:19.3]} 31... Be7 {[%clk 0:00:20.5]}
32. Bc5 {[%clk 0:01:09]} 32... Kc6 {[%clk 0:00:12.7]} 33. Bxe7 {[%clk
0:01:08.9]} 33... Kxb7 {[%clk 0:00:12.7]} 34. g4 {[%clk 0:01:02.7]} 34... a5
{[%clk 0:00:11.9]} 35. h4 {[%clk 0:00:58.7]} 35... h5 {[%clk 0:00:10.3]} 36.
gxh5 {[%clk 0:00:58.1]} 36... gxh5 {[%clk 0:00:11.2]} 37. f5 {[%clk 0:00:58.4]}
37... Kc6 {[%clk 0:00:10.7]} 38. Bd6 {[%clk 0:00:57.4]} 38... Na6 {[%clk
0:00:09.5]} 39. fxe6 {[%clk 0:00:55.8]} 39... fxe6 {[%clk 0:00:09]} 40. Kf4
{[%clk 0:00:56]} 40... Nc5 {[%clk 0:00:09]} 41. Bxc5 {[%clk 0:00:45]} 41... Kxc5
{[%clk 0:00:09.9]} 42. Kg5 {[%clk 0:00:45.2]} 42... Kxc4 {[%clk 0:00:09.9]} 43.
Kxh5 {[%clk 0:00:37.8]} 43... Kd5 {[%clk 0:00:09.6]} 44. Kg5 {[%clk 0:00:37.6]}
44... Kxe5 {[%clk 0:00:09.9]} 45. h5 {[%clk 0:00:37.6]} 1-0